Cogmind - Beta 15 @@@ ROGUE MODE // 2025.05.14 @ 00:15:05 Player: Sunvar Result: Destroyed by BS-T25(R) with Subdweller Laser Performance ------------- Evolutions (0) 0 Regions Visited (2) 400 Robots Destroyed (30) 150 Value Destroyed (660) 660 Prototype IDs (14) 280 Alien Tech Used (0) 0 Bonus (0) 0 TOTAL SCORE: 1490 Bonus ------- None Cogmind --------- Core Integrity 0/250 Matter 127/300 Energy 250/250 System Corruption 0% Temperature Cool (24) Movement Treading (160) Location -10/Subcaves Parts ------- > --- POWER (1) -------- Ion Engine > --- PROPULSION (2) --- Light Treads Light Treads > --- UTILITY (2) ------ Large Storage Unit Subdweller Optics > --- WEAPON (2) ------- Particle Gun Autogun > --- INVENTORY (15) --- Subdweller Power Source Arachnoskeleton Compact Wheel Subdweller Monowheel Subdweller Optics Hacking Suite Subdweller Beam Cannon Subdweller Beam Cannon Autogun Autogun Subdweller Machine Gun Grenade Launcher Peak State ------------ > --- POWER ------------ Subdweller Power Source > --- PROPULSION ------- Light Treads Light Treads > --- UTILITY ---------- Improved Heat Sink Large Storage Unit > --- WEAPON ----------- Particle Gun Autogun > --- INVENTORY -------- Ion Engine Subdweller Power Source Light Treads Arachnoskeleton Compact Wheel Subdweller Optics Subdweller Optics Hacking Suite Subdweller Beam Cannon Autogun Autogun Subdweller Machine Gun Grenade Launcher [Rating: 16] Favorites ----------- Power Ion Engine Engine Ion Engine Propulsion Light Treads Treads Light Treads Utility Large Storage Unit Device Improved Heat Sink Storage Large Storage Unit Weapon Assault Rifle Energy Gun Particle Gun Energy Cannon Subdweller Beam Cannon Ballistic Gun Assault Rifle Ballistic Cannon Light Cannon Launcher Grenade Launcher Build | -11 -10 -10 ------- Run | Yrd Mat Sub Slots Evolved . | . . . Power . | . . . Propulsion . | . . . Utility . | . . . Weapon . | . . . Parts Attached 22 | 7 6 9 Power 3 | 1 . 2 Engine 3 | 1 . 2 Core . | . . . Reactor . | . . . Propulsion 4 | 2 . 2 Treads 4 | 2 . 2 Leg . | . . . Wheel . | . . . Hover . | . . . Flight . | . . . Utility 6 | 2 3 1 Device 3 | 1 1 1 Storage 3 | 1 2 . Processor . | . . . Hackware . | . . . Protection . | . . . Artifact . | . . . Weapon 9 | 2 3 4 Energy Gun 2 | . 1 1 Energy Cannon 1 | . . 1 Ballistic Gun 4 | 2 . 2 Ballistic Cannon 1 | . 1 . Launcher 1 | . 1 . Special Weapon . | . . . Impact Weapon . | . . . Slashing Weapon . | . . . Piercing Weapon . | . . . Special Melee Weapon . | . . . Unidentified Prototypes . | . . . Parts Lost 5 | . . 5 Power 1 | . . 1 Propulsion 2 | . . 2 Utility 1 | . . 1 Weapon 1 | . . 1 Highest Loss Streak 2 | . . 2 To Critical Strikes . | . . . Average Backups 12 | 2 10 14 Power 1 | . 2 1 Propulsion 2 | 1 2 2 Utility 3 | . 2 4 Weapon 4 | . 3 5 Tool/Special . | . . . Unused Backups 24 | . 9 15 Power 4 | . 3 1 Propulsion 5 | . 2 3 Utility 9 | . 2 7 Weapon 6 | . 2 4 Tool/Special . | . . . Average Slot Usage (%) 99 | . 99 99 Engine 14 | . 14 14 Treads 28 | . 28 28 Device 13 | . 13 14 Storage 14 | . 14 14 Energy Gun 7 | . 1 13 Ballistic Gun 10 | . 13 7 Ballistic Cannon 6 | . 10 2 Launcher 3 | . 2 4 Peak Build Rating 16 | 7 12 16 Average Rating 10 | 4 8 13 On Entrance 6 | . 7 12 Naked Turns . | . . . Heaviest Build 37 | 15 32 37 Greatest Support 40 | 40 40 40 Greatest Overweight (x) . | . . . Average Overweight (x) . | . . . Largest Inventory Capacity 15 | 8 15 15 Average Capacity 13 | 6 11 15 Most Carried 15 | 4 15 15 Average Carried 12 | 2 11 14 Final Capacity 15 | 8 15 15 Final Carried 15 | 4 15 14 Class Distribution -------------------- 100% | Mutant Dominant Class ---------------- Mutant | -10/Materials Mutant | -10/Subcaves Resources | -11 -10 -10 ----------- Run | Yrd Mat Sub Matter Collected 1085 | 146 561 378 Remotely . | . . . Salvage Created 994 | 94 688 212 Parts 65 | 6 44 15 Haulers Intercepted 2 | . 2 . Recyclers Shooed 2 | 1 1 . Parts Field Recycled . | . . . Retrieved Matter . | . . . Parts Self-Destructed 2 | . . 2 Prevented . | . . . Kills | -11 -10 -10 ------- Run | Yrd Mat Sub Combat Hostiles Destroyed 19 | . 13 6 Guns 7 | . 2 5 Cannons 9 | . 8 1 AOE 3 | . 3 . Classes Destroyed 8 | 2 5 1 Tunneler 1 | 1 . . Hauler 2 | . 2 . Recycler 4 | 1 3 . Operator 1 | . 1 . Watcher 3 | . 3 . Swarmer 6 | . 6 . Grunt 7 | . 7 . Subdweller 6 | . . 6 Best Kill Streak 4 | 2 4 2 Combat Bots Only 3 | . 3 2 Max Kills in Single Turn 3 | 1 3 1 Gunslinging . | . . . Exploded 3 | . 3 . Melee . | . . . Uniques/NPCs Destroyed . | . . . Combat | -11 -10 -10 -------- Run | Yrd Mat Sub Hostile Shots Fired 102 | . 49 53 Missed 27 | . 13 14 Hits 75 | . 36 39 Projectile 75 | . 36 39 Critical Strikes 1 | . . 1 Damage Taken 1311 | . 375 936 Core 255 | . 51 204 Absorbed by Shields . | . . . Core Remaining (%) 100 | 100 . . Volleys Fired 111 | 5 43 63 Largest 2 | 2 2 2 Hottest 95 | 40 50 95 Shots Fired 180 | 10 84 86 Gun 95 | 10 41 44 Cannon 68 | . 41 27 Launcher 17 | . 2 15 Special . | . . . Kinetic 120 | 10 82 28 Thermal 43 | . . 43 Explosive 17 | . 2 15 Electromagnetic . | . . . Robot Hit Streak 23 | 5 6 23 Robot Miss Streak 5 | 2 5 2 Penetration Max . | . . . Secondary Targets . | . . . Shots Hit Robots 99 | 6 52 41 Core Hits 43 | 3 27 13 Critical Kills . | . . . Critical Parts Destroyed 1 | . 1 . Critical Strikes 6 | . 3 3 Burn 3 | . . 3 Destroy 1 | . 1 . Blast 2 | . 2 . Melee Attacks . | . . . Impact . | . . . Slashing . | . . . Piercing . | . . . Sneak Attacks . | . . . Combat Hostiles . | . . . Follow-up Attacks . | . . . Damage Inflicted 1641 | 78 929 634 Guns 887 | 78 283 526 Cannons 622 | . 514 108 Explosions 129 | . 129 . Melee . | . . . Ramming 3 | . 3 . Kinetic 1180 | 78 797 305 Thermal 329 | . . 329 Explosive 129 | . 129 . Electromagnetic . | . . . Impact . | . . . Slashing . | . . . Piercing . | . . . Highest Corruption . | . . . Average Corruption . | . . . Corruption Purged . | . . . Corruption Blocked . | . . . Overload Shots . | . . . Overflow Damage . | . . . Projectiles . | . . . Explosions . | . . . Melee . | . . . Knockbacks 10 | . 8 2 Impact . | . . . Kinetic 10 | . 8 2 Secondary . | . . . Self-Inflicted Damage 22 | . . 22 Shots 3 | . . 3 Rammed . | . . . Targets Rammed 1 | . 1 . Kicked . | . . . Crushed 1 | . 1 . Highest Temperature 33 | . 8 33 Average Temperature 11 | . 3 14 Received Heat Transfer 363 | . 162 201 Siege Activations . | . . . Martial Activations . | . . . Shielding Activations . | . . . Robots Disrupted . | . . . Combat Hostiles . | . . . Robots Corrupted . | . . . Combat Hostiles . | . . . Parts Fried . | . . . Impact Corruptions . | . . . Robots Melted . | . . . Combat Hostiles . | . . . Parts Melted . | . . . Heat Transferred 1036 | . . 1036 Parts Sabotaged . | . . . Parts Stolen . | . . . Parts Stripped . | . . . Power Chain Reactions . | . . . Alert | -11 -10 -10 ------- Run | Yrd Mat Sub Maximum Alert Level . | . . . Low Security (%) 100 | 100 100 . Level 1 . | . . . Level 2 . | . . . Level 3 . | . . . Level 4 . | . . . Level 5 . | . . . High Security . | . . . Max Security . | . . . Peak Influence 81 | 5 81 . Initial . | . . . Average 22 | . 23 . Influence Increases 421 | 10 411 . Destroy 0b10 Robot/C 260 | . 260 . Destroy 0b10 Robot/NC 55 | 10 45 . Destroy Leader 60 | . 60 . Successful Hack 18 | . 18 . Disable Machine 15 | . 15 . Destroy Structure 13 | . 13 . Influence Decreases 421 | 10 411 . Time Decay 348 | 10 338 . Purge Threat 73 | . 73 . Squads Dispatched 2 | . 2 . Investigation 1 | . 1 . Extermination . | . . . Reinforcement 1 | . 1 . Assault . | . . . Garrison . | . . . Intercept . | . . . Searches Triggered . | . . . Construction Impeded . | . . . Haulers Reinforced . | . . . Active Scanning Responses . | . . . Cargo Convoy Interrupts . | . . . Stealth | -11 -10 -10 --------- Run | Yrd Mat Sub Distress Signals 1 | . 1 . Communications Jammed . | . . . Distress Signals . | . . . Times Spotted 29 | . 19 10 Peak Tracking Total 4 | . 3 4 Tactical Retreats 2 | . . 2 Traps | -11 -10 -10 ------- Run | Yrd Mat Sub Traps Triggered 2 | . 1 1 Indirectly . | . . . Trap Hack Attempts . | . . . Triggered . | . . . Disarmed . | . . . Reprogrammed . | . . . Reused . | . . . Traps Extracted . | . . . Installed . | . . . Triggered . | . . . Machines | -11 -10 -10 ---------- Run | Yrd Mat Sub Machines Disabled 2 | . 1 1 Max in Single Turn 1 | . 1 1 Machines Repaired . | . . . Machines Dismantled . | . . . Machines Sabotaged . | . . . Overloaded Fab Kills . | . . . Hacking | -11 -10 -10 --------- Run | Yrd Mat Sub Machines Accessed 8 | . 7 1 Terminals 7 | . 7 . Fabricators . | . . . Repair Stations . | . . . Recycling Units . | . . . Scanalyzers . | . . . Garrison Access . | . . . Total Hacks 19 | . 18 1 Successful 12 | . 11 1 Failed 6 | . 6 . Catastrophic 2 | . 2 . Database Lockouts 1 | . 1 . Manual 9 | . 9 . Terminals 18 | . 18 . Fabricators . | . . . Repair Stations . | . . . Recycling Units . | . . . Scanalyzers . | . . . Garrison Access . | . . . Terminal Hacks 9 | . 8 1 Robot Analysis 1 | . 1 . Prototype ID Bank 2 | . 2 . Terminal Index 1 | . 1 . Unreport Threat 1 | . 1 . Hauler Manifests 1 | . 1 . Registered Prototypes 1 | . 1 . Zone Layout 1 | . 1 . Proto ID Catalog 1 | . . 1 Fabricator Hacks . | . . . Repair Station Hacks . | . . . Recycling Unit Hacks . | . . . Scanalyzer . | . . . Garrison Access Hacks . | . . . Unauthorized Hacks 3 | . 3 . Terminals 3 | . 3 . Botnet 3 | . 3 . Fabricators . | . . . Repair Stations . | . . . Recycling Units . | . . . Scanalyzers . | . . . Garrison Access . | . . . Data Cores Recovered 1 | . 1 . Used . | . . . Hacking Detections 7 | . 7 . Full Trace Events . | . . . Feedback Events . | . . . Feedback Blocked . | . . . Robot Schematics Acquired . | . . . Robots Built . | . . . Authchips . | . . . Time . | . . . Total Robot Build Rating . | . . . Part Schematics Acquired . | . . . Parts Built . | . . . Authchips . | . . . Time . | . . . Total Part Build Rating . | . . . Parts Repaired . | . . . Time . | . . . Parts Recycled . | . . . Recycled Matter . | . . . Retrieved Matter . | . . . Retrieved Components . | . . . Parts Scanalyzed . | . . . Part Schematics Acquired . | . . . Parts Damaged . | . . . Bothacking | -11 -10 -10 ------------ Run | Yrd Mat Sub Used RIF Installer . | . . . Robots Hacked . | . . . Non-combat . | . . . Combat . | . . . Robot Hacks Applied . | . . . Relay Couplers Released . | . . . Fabnet Peak Effective % . | . . . Robots Rewired . | . . . Allies Hacked . | . . . Hacks Repelled . | . . . Allies | -11 -10 -10 -------- Run | Yrd Mat Sub Total Allies . | . . . Largest Group . | . . . Highest-Rated Group . | . . . Highest-Rated Ally . | . . . Total Orders . | . . . Ally Attacks . | . . . Total Damage . | . . . Kills . | . . . Allies Corrupted . | . . . Allies Melted . | . . . Intel | -11 -10 -10 ------- Run | Yrd Mat Sub Active Infowar (turns) 733 | 24 582 127 Optics 127 | . . 127 Seismic 606 | 24 582 . Robot Analysis Total 1 | . 1 . Derelict Logs Recovered 1 | . . 1 Drone Launches . | . . . Drone Recoveries . | . . . Exploration | -11 -10 -10 ------------- Run | Yrd Mat Sub Turns Passed 3013 | 114 1487 1412 Spaces Moved 1617 | 54 823 740 Core 1 | 1 . . Treads 1616 | 53 823 740 Legs . | . . . Wheels . | . . . Hover . | . . . Flight . | . . . Fastest Speed 50 | 50 160 160 Average Speed 159 | 157 160 160 Slowest Speed 160 | 160 160 160 Overloaded Moves . | . . . Propulsion Burnouts . | . . . Robots Hopped . | . . . Potential Cave-ins . | . . . Cave-ins Triggered . | . . . Exploration Rate (%) 45 | 4 99 33 Regions Visited 2 Branch Regions 1 Pre-discovered Areas . | . . . Known Exits Taken . | . . . Unknown Exits Taken 2 | 1 1 . Scrap Searched . | . . . Spaces Dug 27 | . 7 20 Terrain Destroyed 82 | . 10 72 Melee . | . . . Projectile 11 | . . 11 AOE 71 | . 10 61 Terrain Rammed . | . . . Walls Destroyed . | . . . Machines Disabled . | . . . Actions | -11 -10 -10 --------- Run | Yrd Mat Sub Total 1862 | 69 916 877 Wait 33 | . 4 29 Move 1615 | 53 822 740 Hop . | . . . Pick Up 36 | 4 21 11 Fast Attach 10 | 7 3 . Attach 5 | . . 5 Detach 2 | . 2 . Swap 26 | . 6 20 Drop 23 | . 14 9 Fire 111 | 5 43 63 Melee . | . . . Ram . | . . . Kick . | . . . Crush 1 | . 1 . Escape Stasis . | . . . Rewire . | . . . Trap . | . . . Miscellaneous . | . . . Route ------- -11/Scrapyard -10/Materials (discovered 6 exits: [*Mat x3] / [*Min x2] / *Sub) -10/Subcaves (discovered 1 exit: [*Mat]) History --------- Turn | Location | Event 67 | -11/Scrapyard | Discovered new exit (range 16) 115 | -11/Scrapyard | Entered Materials 256 | -10/Materials | Discovered new exit (range 14) 296 | -10/Materials | Discovered new exit (range 10) 306 | -10/Materials | Build established: Mutant 382 | -10/Materials | Discovered new exit (range 15) 684 | -10/Materials | Discovered new exit (range 8) 944 | -10/Materials | Central database locked down 1191 | -10/Materials | Discovered new exit (range 16) 1275 | -10/Materials | Discovered new exit (range 13) 1602 | -10/Materials | Entered Subcaves 1606 | -10/Subcaves | Learned Materials interactive machine intel 1851 | -10/Subcaves | A swath of the cavern ceiling suddenly collapsed 2389 | -10/Subcaves | Discovered new exit (range 12) 2561 | -10/Subcaves | Ambushed by Subdweller buried in earth 2685 | -10/Subcaves | Visited 4L-MR0's lab 2706 | -10/Subcaves | Found Arachnoskeleton 2812 | -10/Subcaves | A swath of the cavern ceiling suddenly collapsed 2880 | -10/Subcaves | Core integrity fell below 50% 2924 | -10/Subcaves | Core integrity fell below 20% 3014 | -10/Subcaves | Destroyed by BS-T25(R) with Subdweller Laser Last Messages --------------- 02703_ Dropped Core Shielding. 02706_ Acquired Arachnoskeleton. 02711_ 4L-MR0 mumbles: "I'm surprised some of them are even willing to come in here given their fear of my usual visitors." 02716_ 4L-MR0 mumbles: "Who knows where that last prototype ended up, probably tossed aside somewhere as if it were useless junk..." 02812_ 15 Matter crushed. A swath of the cavern ceiling suddenly collapses. 02887_ Imp. Heat Sink destroyed. 02891_ Lgt. Treads destroyed. 02916_ BV-U3N(R) suffers critical hit (Burn). 02930_ BV-U3N(R) destroyed. 02936_ Acquired Sub. Beam Cannon. 02958_ Acquired Sub. Monowheel. 02959_ Acquired 54 matter. 02962_ Acquired 56 matter. 02964_ Acquired 10 matter. 02967_ Sub. Power Source shoots sparks and powers down. 02969_ Dropped Broken Sub. Power Source. 03012_ BS-T25(R) suffers critical hit (Burn). Map ----- +----------------------------------------------------+ | ?????????## ## ## ##??# ##%###""##"#####" | | ??????????# ###### #??## " " "#######???# # | | ??????????# ##???###??# "### ###????## ## ## | | ?????????## #?????##### #""# ##???????####??#? | | ?????????# ##????## ## #######???????????????? | | ?????????# #???## # "#????????????????? | | ?????????# ###?# ## #????????????????? | | ?????????## #?# # #????????????????? | | ?????????## #?# ## #????????????????? | | ?????????# #### ### #????????????????? | | ?????????# # # ## #????????????????? | | ?????????# ! ## ##????????????????? | | ?????????# ### ## ## #?????????????????? | | ?????????# ##?#&%### #?????????????????? | | ????????# % ##?## & ## #?????????????????? | | ????????# #??# ### #?????????????????? | | ????????## ##??# !#?# #?????????????????? | | ?????????# #?### #### #?????????????????? | | ?????????# #### ### #* ###???????????????? | | ????????### ### ##??# #???????????????? | | ???????## ##### #??### ##??????????????? | | ???????#""## # #?"## " ##?????????????? | | ????????# ""###### ####"?### " #?????????????? | | ????????# #?????## "##"###?# " ##????????????? | | ????????# ###????##"##;#;#### ####?##??????? | | ????????## #????### "#;@# " ""##"##?????? | | ?????????# #??????###R; #?????? | | ?????????# #????????###; ##?????? | | ?????????# #?###????### # ##??????? | | ????????## ###"###### # ##???????? | | ????????# ## # # ###" ###????????? | | ????????## # ##### ########????? | | ?????????## #?#" ### #????? | | ??????????# # ##?## ## #????? | | ??????????# # #???# && #????? | | ??????????# # ##???# & ##???? | | ?????????## ##???## #???? | | ?????????# ## #????## ###???? | | ????????## #### #?????# ##????? | | ????????# ### ###???# ###??? | | ????????# ## ## ###?###### ###? | | ????????###### ######### ## | | ?????????????# ## ## ##### | | ?????????????####### ##?# | | ???????????????????# ## #?#### | | ???????????????????# ### ##????## | | ???????????????????## #?# ### #??????## | | ????????????????????## ?# ##?#"#???????## | | ?????????????????????## ##########??# #????????# | | ??????????????????????#####???????????# #????????? | +----------------------------------------------------+ Best States ------------- Heat Dissipation 39 Energy Generation 15 Energy Capacity 250 Matter Stores 300 Matter Capacity 400 Sight Range 21 Terrain Scan Density 10 Evasion (%) 40 Recoil Reduction 2 Item Schematics ----------------- None Robot Schematics ------------------ None Fabricated ------------ Nothing Repaired ---------- Nothing Alien Tech Used ----------------- None Achievements -------------- None Challenges ------------ None Game ------ Seed ChromionRelayLaser Manual? 0 Play Time 00:25:49 Cumulative 149.5 hours Start 2025.05.13 @ 17:13:50 End 2025.05.14 @ 00:15:05 Sessions 3 Manual Loads 0 Difficulty Rogue Special Mode None Game No. 104 Rogue 104 Adventurer 0 Explorer 0 Win Type - Total 6 Types 5/0/1/0/0/0/0/0/0/0 Lore% 62 Gallery% 56 Achievement% 52 Wizard Run 0 Options --------- Layout 0 ASCII 0 Keyboard 1 Movement Numpad Keybinds 0 Fullscreen 1 Font 36/Proggy Map View 76x50 Zoom Use 0% Tactical HUD 1 Map Filters NONE Filters NONE Steam 1 RUN: 1644e94e-34e8-4968-b8a7-53e0906532c1